[Event "Early-Titled-Tuesday-Blitz-May-28-2024"]
[Site "Chess.com"]
[Date "2024.05.28"]
[Round "11"]
[White "martinmena"]
[Black "PowerThinking2650"]
[Result "1-0"]
[WhiteElo "2140"]
[BlackElo "2495"]
[TimeControl "180+1"]
[EndTime "10:10:51 PDT"]
[Termination "martinmena won by checkmate"]

1. c4 {[%clk 0:03:00.9]} 1... Nf6 {[%clk 0:02:58]} 2. g3 {[%clk 0:02:57.9]} 2...
g6 {[%clk 0:02:58.1]} 3. Bg2 {[%clk 0:02:55.3]} 3... Bg7 {[%clk 0:02:58.4]} 4.
Nc3 {[%clk 0:02:51.1]} 4... d6 {[%clk 0:02:58.1]} 5. e4 {[%clk 0:02:49.3]} 5...
c5 {[%clk 0:02:57.6]} 6. d3 {[%clk 0:02:48.6]} 6... Nc6 {[%clk 0:02:57.7]} 7.
Nge2 {[%clk 0:02:47.3]} 7... h5 {[%clk 0:02:52.3]} 8. h4 {[%clk 0:02:44.1]} 8...
Ng4 {[%clk 0:02:41]} 9. O-O {[%clk 0:02:39.9]} 9... a6 {[%clk 0:02:08.9]} 10. a3
{[%clk 0:02:29.7]} 10... Rb8 {[%clk 0:02:06.9]} 11. Rb1 {[%clk 0:02:28.2]} 11...
b5 {[%clk 0:02:01.6]} 12. cxb5 {[%clk 0:02:15.3]} 12... axb5 {[%clk 0:02:02.5]}
13. b4 {[%clk 0:02:14.5]} 13... cxb4 {[%clk 0:01:38.1]} 14. axb4 {[%clk
0:02:15.4]} 14... Nd4 {[%clk 0:01:36.4]} 15. Be3 {[%clk 0:02:05.2]} 15... Nxe3
{[%clk 0:01:32.8]} 16. fxe3 {[%clk 0:02:04.3]} 16... Nxe2+ {[%clk 0:01:28]} 17.
Nxe2 {[%clk 0:02:02.6]} 17... O-O {[%clk 0:01:18]} 18. Qb3 {[%clk 0:01:56.4]}
18... Be6 {[%clk 0:01:14.5]} 19. Qc2 {[%clk 0:01:50.9]} 19... Qb6 {[%clk
0:01:12.5]} 20. d4 {[%clk 0:01:50]} 20... Rbc8 {[%clk 0:01:07.1]} 21. Qd2 {[%clk
0:01:49.2]} 21... Bc4 {[%clk 0:00:55.7]} 22. Rfc1 {[%clk 0:01:44.9]} 22... Bxe2
{[%clk 0:00:49.7]} 23. Qxe2 {[%clk 0:01:44.2]} 23... Bh6 {[%clk 0:00:49.8]} 24.
Bf1 {[%clk 0:01:39.2]} 24... e5 {[%clk 0:00:43.5]} 25. Rxc8 {[%clk 0:01:04.4]}
25... Rxc8 {[%clk 0:00:44.4]} 26. dxe5 {[%clk 0:00:58.9]} 26... dxe5 {[%clk
0:00:39.2]} 27. Rb3 {[%clk 0:00:51.5]} 27... Rc1 {[%clk 0:00:37.2]} 28. Kg2
{[%clk 0:00:46.6]} 28... Qc6 {[%clk 0:00:32.9]} 29. Qd3 {[%clk 0:00:31.8]} 29...
Rc2+ {[%clk 0:00:20.2]} 30. Be2 {[%clk 0:00:23.3]} 30... Ra2 {[%clk 0:00:15.2]}
31. Rc3 {[%clk 0:00:20.2]} 31... Qf6 {[%clk 0:00:13.6]} 32. Qxb5 {[%clk
0:00:17.9]} 32... Bf8 {[%clk 0:00:09.6]} 33. Qc4 {[%clk 0:00:10]} 33... Kg7
{[%clk 0:00:08.4]} 34. Qxa2 {[%clk 0:00:09.1]} 34... Qb6 {[%clk 0:00:06.8]} 35.
Qb3 {[%clk 0:00:08.1]} 35... Qb7 {[%clk 0:00:06.7]} 36. b5 {[%clk 0:00:06.1]}
36... Qxe4+ {[%clk 0:00:06.6]} 37. Bf3 {[%clk 0:00:06.8]} 37... Qf5 {[%clk
0:00:05.4]} 38. b6 {[%clk 0:00:06.7]} 38... Bd6 {[%clk 0:00:05.9]} 39. e4 {[%clk
0:00:06.4]} 39... Qd7 {[%clk 0:00:04.1]} 40. b7 {[%clk 0:00:06.8]} 40... Bb8
{[%clk 0:00:04]} 41. Qd5 {[%clk 0:00:05.7]} 41... Qa4 {[%clk 0:00:03.6]} 42. Rc8
{[%clk 0:00:05.2]} 42... Qa7 {[%clk 0:00:01.7]} 43. Rxb8 {[%clk 0:00:05]} 43...
Qxb8 {[%clk 0:00:01.2]} 44. Qc6 {[%clk 0:00:05.6]} 44... Qa7 {[%clk 0:00:01]}
45. Qc8 {[%clk 0:00:05.1]} 45... Qa2+ {[%clk 0:00:01.2]} 46. Kh3 {[%clk
0:00:04.2]} 46... Qf2 {[%clk 0:00:01.3]} 47. Bg2 {[%clk 0:00:03.5]} 47... g5
{[%clk 0:00:01.2]} 48. hxg5 {[%clk 0:00:03]} 48... h4 {[%clk 0:00:01.2]} 49.
gxh4 {[%clk 0:00:02.6]} 49... Qe3+ {[%clk 0:00:01]} 50. Kh2 {[%clk 0:00:02.6]}
50... Qf4+ {[%clk 0:00:01.4]} 51. Kg1 {[%clk 0:00:03.1]} 51... Qe3+ {[%clk
0:00:01.7]} 52. Kf1 {[%clk 0:00:03.8]} 52... Qf4+ {[%clk 0:00:02]} 53. Ke1
{[%clk 0:00:03.9]} 53... Qe3+ {[%clk 0:00:02.3]} 54. Kd1 {[%clk 0:00:04.2]}
54... Qg1+ {[%clk 0:00:02.6]} 55. Kc2 {[%clk 0:00:03.5]} 55... Qxg2+ {[%clk
0:00:03.1]} 56. Kb3 {[%clk 0:00:04.2]} 56... Qf3+ {[%clk 0:00:03]} 57. Kb2
{[%clk 0:00:04]} 57... Qe2+ {[%clk 0:00:03.1]} 58. Qc2 {[%clk 0:00:02.9]} 58...
Qb5+ {[%clk 0:00:03]} 59. Qb3 {[%clk 0:00:03.6]} 59... Qe2+ {[%clk 0:00:03.2]}
60. Ka3 {[%clk 0:00:03.8]} 60... Qa6+ {[%clk 0:00:03.2]} 61. Kb2 {[%clk
0:00:03.1]} 61... Qe2+ {[%clk 0:00:03.3]} 62. Kc3 {[%clk 0:00:03.7]} 62... Qe3+
{[%clk 0:00:02.5]} 63. Kc4 {[%clk 0:00:03.6]} 63... Qxe4+ {[%clk 0:00:02.8]} 64.
Kc5 {[%clk 0:00:03.5]} 64... Qd4+ {[%clk 0:00:03.1]} 65. Kc6 {[%clk 0:00:04]}
65... Qe4+ {[%clk 0:00:01.9]} 66. Kc7 {[%clk 0:00:04.3]} 66... Qf4 {[%clk
0:00:00.9]} 67. b8=Q {[%clk 0:00:04.2]} 67... e4+ {[%clk 0:00:01.8]} 68. Kb7
{[%clk 0:00:04.9]} 68... Qf3 {[%clk 0:00:01.7]} 69. Qe5+ {[%clk 0:00:05]} 69...
Kg6 {[%clk 0:00:01.9]} 70. Qxf3 {[%clk 0:00:05.7]} 70... exf3 {[%clk 0:00:01.9]}
71. Qe4+ {[%clk 0:00:06.6]} 71... f5 {[%clk 0:00:01.6]} 72. Qxf3 {[%clk
0:00:07.5]} 72... f4 {[%clk 0:00:01.6]} 73. Qxf4 {[%clk 0:00:08]} 73... Kh5
{[%clk 0:00:01.7]} 74. g6 {[%clk 0:00:07.1]} 74... Kxg6 {[%clk 0:00:01.9]} 75.
Qg5+ {[%clk 0:00:07.9]} 75... Kh7 {[%clk 0:00:02]} 76. Kc7 {[%clk 0:00:07.8]}
76... Kh8 {[%clk 0:00:02.5]} 77. Kd7 {[%clk 0:00:08.2]} 77... Kh7 {[%clk
0:00:03.4]} 78. Ke7 {[%clk 0:00:08.6]} 78... Kh8 {[%clk 0:00:04.3]} 79. Kf7
{[%clk 0:00:08.9]} 79... Kh7 {[%clk 0:00:05.2]} 80. Qg7# {[%clk 0:00:09.8]} 1-0

[Event "Early-Titled-Tuesday-Blitz-May-28-2024"]
[Site "Chess.com"]
[Date "2024.05.28"]
[Round "11"]
[White "Likvidator228"]
[Black "littlepinkyboy"]
[Result "1-0"]
[WhiteElo "2544"]
[BlackElo "2617"]
[TimeControl "180+1"]
[EndTime "10:11:07 PDT"]
[Termination "Likvidator228 won by resignation"]

1. d4 {[%clk 0:03:00.9]} 1... d5 {[%clk 0:02:59.4]} 2. Bf4 {[%clk 0:03:01]} 2...
Nf6 {[%clk 0:02:58.7]} 3. e3 {[%clk 0:03:01.3]} 3... e6 {[%clk 0:02:59.2]} 4.
Nf3 {[%clk 0:02:59.9]} 4... Bd6 {[%clk 0:02:59.1]} 5. Bg3 {[%clk 0:02:59.7]}
5... O-O {[%clk 0:02:58.5]} 6. Nbd2 {[%clk 0:02:59.8]} 6... c5 {[%clk
0:02:58.4]} 7. c3 {[%clk 0:03:00.1]} 7... b6 {[%clk 0:02:58.7]} 8. Bd3 {[%clk
0:02:59.7]} 8... Bb7 {[%clk 0:02:58.8]} 9. O-O {[%clk 0:02:58.3]} 9... Qe7
{[%clk 0:02:56.1]} 10. Ne5 {[%clk 0:02:58.2]} 10... Nbd7 {[%clk 0:02:56.4]} 11.
f4 {[%clk 0:02:58.2]} 11... Ne4 {[%clk 0:02:48.8]} 12. Nxe4 {[%clk 0:02:58.1]}
12... dxe4 {[%clk 0:02:49.7]} 13. Be2 {[%clk 0:02:55.2]} 13... Nf6 {[%clk
0:02:49.1]} 14. Bh4 {[%clk 0:02:52.3]} 14... cxd4 {[%clk 0:02:45.9]} 15. cxd4
{[%clk 0:02:50]} 15... Qd8 {[%clk 0:02:44]} 16. Bxf6 {[%clk 0:02:42.2]} 16...
gxf6 {[%clk 0:02:41.4]} 17. Nc4 {[%clk 0:02:41.8]} 17... f5 {[%clk 0:02:39.8]}
18. Nxd6 {[%clk 0:02:41.2]} 18... Qxd6 {[%clk 0:02:40.4]} 19. Rc1 {[%clk
0:02:39.2]} 19... Rfc8 {[%clk 0:02:37.9]} 20. Qb3 {[%clk 0:02:38.5]} 20... Rxc1
{[%clk 0:02:32]} 21. Rxc1 {[%clk 0:02:37.9]} 21... Rc8 {[%clk 0:02:32.9]} 22.
Rxc8+ {[%clk 0:02:37.8]} 22... Bxc8 {[%clk 0:02:33.8]} 23. Qc3 {[%clk
0:02:35.2]} 23... Bb7 {[%clk 0:02:33.2]} 24. a3 {[%clk 0:02:34.4]} 24... Kf8
{[%clk 0:02:29.1]} 25. Kf2 {[%clk 0:02:32.5]} 25... Ke7 {[%clk 0:02:29.2]} 26.
g3 {[%clk 0:02:31.8]} 26... a6 {[%clk 0:02:25.2]} 27. Ke1 {[%clk 0:02:31.1]}
27... f6 {[%clk 0:02:14.2]} 28. b4 {[%clk 0:02:24.3]} 28... Kd7 {[%clk
0:02:09.7]} 29. Bc4 {[%clk 0:02:05.7]} 29... Qc6 {[%clk 0:02:02.6]} 30. Kd2
{[%clk 0:02:04.1]} 30... a5 {[%clk 0:01:56.4]} 31. Bb3 {[%clk 0:01:58.8]} 31...
Qxc3+ {[%clk 0:01:50.5]} 32. Kxc3 {[%clk 0:01:58.6]} 32... Kd6 {[%clk
0:01:51.4]} 33. Ba4 {[%clk 0:01:55.1]} 33... Ba6 {[%clk 0:01:43.7]} 34. Bb3
{[%clk 0:01:53.5]} 34... e5 {[%clk 0:01:42.9]} 35. Bc4 {[%clk 0:01:50.8]} 35...
Bxc4 {[%clk 0:01:11.1]} 36. Kxc4 {[%clk 0:01:50.9]} 36... exd4 {[%clk
0:01:11.2]} 37. Kxd4 {[%clk 0:01:46.3]} 37... axb4 {[%clk 0:01:09.9]} 38. axb4
{[%clk 0:01:46.3]} 38... h5 {[%clk 0:01:04.6]} 39. Kc4 {[%clk 0:01:43.2]} 39...
Kc6 {[%clk 0:01:02.1]} 40. h3 {[%clk 0:01:42]} 40... Kd6 {[%clk 0:00:35.8]} 41.
Kb5 {[%clk 0:01:41.9]} 41... Kc7 {[%clk 0:00:36]} 42. Ka6 {[%clk 0:01:32.8]}
42... Kc6 {[%clk 0:00:35.6]} 43. b5+ {[%clk 0:01:32.3]} 43... Kc5 {[%clk
0:00:24.2]} 44. h4 {[%clk 0:01:32.5]} 44... Kc4 {[%clk 0:00:24.4]} 45. Kxb6
{[%clk 0:01:33]} 45... Kd3 {[%clk 0:00:25.1]} 46. Kc5 {[%clk 0:01:21.8]} 46...
Kxe3 {[%clk 0:00:26]} 47. b6 {[%clk 0:01:22.4]} 47... Kf2 {[%clk 0:00:10.6]} 48.
b7 {[%clk 0:01:22.6]} 48... e3 {[%clk 0:00:11.3]} 49. b8=Q {[%clk 0:01:22]}
49... e2 {[%clk 0:00:12.2]} 50. Qb2 {[%clk 0:01:20]} 50... Kf1 {[%clk
0:00:11.3]} 51. Qb5 {[%clk 0:01:12.8]} 51... Kf2 {[%clk 0:00:10.8]} 52. Qb2
{[%clk 0:00:37.9]} 52... Kf1 {[%clk 0:00:09.4]} 53. Qxf6 {[%clk 0:00:24.9]}
53... e1=Q {[%clk 0:00:09.3]} 54. Qxf5 {[%clk 0:00:25]} 54... Qxg3 {[%clk
0:00:06.5]} 55. Qg5 {[%clk 0:00:22.7]} 55... Qc3+ {[%clk 0:00:04.2]} 56. Kd5
{[%clk 0:00:23]} 56... Qd3+ {[%clk 0:00:03.9]} 57. Ke5 {[%clk 0:00:22.2]} 57...
Qe3+ {[%clk 0:00:03.5]} 58. Kf6 {[%clk 0:00:22]} 58... Kf2 {[%clk 0:00:03.4]}
59. f5 {[%clk 0:00:21.2]} 59... Qd4+ {[%clk 0:00:03]} 60. Kg6 {[%clk 0:00:21.3]}
60... Qe4 {[%clk 0:00:02.7]} 61. Kxh5 {[%clk 0:00:20.6]} 61... Qe8+ {[%clk
0:00:03.3]} 62. Qg6 {[%clk 0:00:20.2]} 62... Qh8+ {[%clk 0:00:03.4]} 63. Kg5
{[%clk 0:00:20.8]} 63... Qd8+ {[%clk 0:00:03.6]} 64. f6 {[%clk 0:00:20.9]} 64...
Qd2+ {[%clk 0:00:03.6]} 65. Kh5 {[%clk 0:00:20.5]} 65... Qe2+ {[%clk 0:00:03.3]}
66. Kh6 {[%clk 0:00:20.8]} 66... Qe3+ {[%clk 0:00:03.6]} 67. Qg5 {[%clk
0:00:21]} 67... Qe6 {[%clk 0:00:02.7]} 68. Kg7 {[%clk 0:00:20.2]} 68... Qd7+
{[%clk 0:00:01.4]} 69. f7 {[%clk 0:00:20.4]} 69... Ke1 {[%clk 0:00:01.1]} 70.
Qf6 {[%clk 0:00:20.3]} 70... Qg4+ {[%clk 0:00:01]} 71. Qg6 {[%clk 0:00:19.5]}
71... Qd4+ {[%clk 0:00:01]} 72. Kg8 {[%clk 0:00:19.6]} 72... Qd5 {[%clk
0:00:01.6]} 73. h5 {[%clk 0:00:19.5]} 73... Kf2 {[%clk 0:00:01.5]} 74. h6 {[%clk
0:00:19.9]} 74... Ke1 {[%clk 0:00:01.7]} 75. h7 {[%clk 0:00:20.4]} 75... Qd8+
{[%clk 0:00:01.9]} 76. f8=Q {[%clk 0:00:20.4]} 76... Qd5+ {[%clk 0:00:01.7]} 77.
Qff7 {[%clk 0:00:19.8]} 77... Qd8+ {[%clk 0:00:01.7]} 78. Kg7 {[%clk 0:00:20.1]}
78... Qd4+ {[%clk 0:00:02.4]} 79. Qgf6 {[%clk 0:00:20.2]} 79... Qg4+ {[%clk
0:00:03]} 80. Q7g6 {[%clk 0:00:20.5]} 80... Qd7+ {[%clk 0:00:03.4]} 81. Kh6
{[%clk 0:00:20.4]} 81... Qh3+ {[%clk 0:00:03.6]} 82. Qh5 {[%clk 0:00:20.9]}
82... Qe3+ {[%clk 0:00:03.6]} 83. Kg6 {[%clk 0:00:20.5]} 83... Qe8+ {[%clk
0:00:03.6]} 84. Kg5 {[%clk 0:00:19.4]} 84... Qe3+ {[%clk 0:00:03.8]} 85. Qf4
{[%clk 0:00:19.2]} 85... Qc5+ {[%clk 0:00:04.3]} 86. Kh4 {[%clk 0:00:19.3]}
86... Qg5+ {[%clk 0:00:01.5]} 87. Qhxg5 {[%clk 0:00:18.1]} 1-0

[Event "Early-Titled-Tuesday-Blitz-May-28-2024"]
[Site "Chess.com"]
[Date "2024.05.28"]
[Round "11"]
[White "Flaccidmoves"]
[Black "GMthekingindian"]
[Result "1-0"]
[WhiteElo "2482"]
[BlackElo "2355"]
[TimeControl "180+1"]
[EndTime "10:11:09 PDT"]
[Termination "Flaccidmoves won by checkmate"]

1. d4 {[%clk 0:03:00.9]} 1... d5 {[%clk 0:02:52]} 2. c4 {[%clk 0:02:59.5]} 2...
e6 {[%clk 0:02:49.7]} 3. Nc3 {[%clk 0:02:59.7]} 3... Nf6 {[%clk 0:02:47.8]} 4.
cxd5 {[%clk 0:02:59.3]} 4... exd5 {[%clk 0:02:47.6]} 5. Bg5 {[%clk 0:02:59.9]}
5... Be7 {[%clk 0:02:47.4]} 6. e3 {[%clk 0:03:00.1]} 6... O-O {[%clk 0:02:47.5]}
7. Bd3 {[%clk 0:02:59.9]} 7... Re8 {[%clk 0:02:42.8]} 8. Qc2 {[%clk 0:02:57.3]}
8... h6 {[%clk 0:02:35]} 9. Bh4 {[%clk 0:02:51.8]} 9... Nbd7 {[%clk 0:02:26.9]}
10. Nf3 {[%clk 0:02:46.9]} 10... c6 {[%clk 0:02:23.6]} 11. O-O {[%clk
0:02:27.2]} 11... Ne4 {[%clk 0:02:23.1]} 12. Bxe7 {[%clk 0:02:25.8]} 12... Qxe7
{[%clk 0:02:24]} 13. Bxe4 {[%clk 0:02:14]} 13... dxe4 {[%clk 0:02:23.9]} 14. Nd2
{[%clk 0:02:14.5]} 14... Nf6 {[%clk 0:02:21.3]} 15. Rae1 {[%clk 0:02:01.7]}
15... Bf5 {[%clk 0:02:04.2]} 16. f4 {[%clk 0:02:00.1]} 16... Nd5 {[%clk
0:01:52.2]} 17. Nxd5 {[%clk 0:01:54.5]} 17... cxd5 {[%clk 0:01:51.8]} 18. Qb3
{[%clk 0:01:54.8]} 18... Qd7 {[%clk 0:01:31.9]} 19. Nb1 {[%clk 0:01:54]} 19...
g6 {[%clk 0:01:17.9]} 20. Nc3 {[%clk 0:01:52.9]} 20... Be6 {[%clk 0:01:18.2]}
21. Na4 {[%clk 0:01:47.3]} 21... b6 {[%clk 0:01:17.9]} 22. Nc3 {[%clk
0:01:47.8]} 22... Rec8 {[%clk 0:01:09.8]} 23. Rc1 {[%clk 0:01:47.3]} 23... Rc4
{[%clk 0:01:08.4]} 24. Nxe4 {[%clk 0:01:23.5]} 24... dxe4 {[%clk 0:00:59.9]} 25.
Rxc4 {[%clk 0:01:23.4]} 25... b5 {[%clk 0:00:58.3]} 26. d5 {[%clk 0:01:19.9]}
26... bxc4 {[%clk 0:00:36.2]} 27. dxe6 {[%clk 0:01:19.7]} 27... Qxe6 {[%clk
0:00:26.2]} 28. Qb5 {[%clk 0:01:10.9]} 28... Qb6 {[%clk 0:00:25.5]} 29. Qxb6
{[%clk 0:00:39.4]} 29... axb6 {[%clk 0:00:25.7]} 30. a3 {[%clk 0:00:40]} 30...
Rd8 {[%clk 0:00:26.2]} 31. Rc1 {[%clk 0:00:39.5]} 31... b5 {[%clk 0:00:25.7]}
32. Rc2 {[%clk 0:00:38.4]} 32... Rd3 {[%clk 0:00:25.1]} 33. Kf2 {[%clk 0:00:38]}
33... Kg7 {[%clk 0:00:24.7]} 34. g4 {[%clk 0:00:36.1]} 34... h5 {[%clk
0:00:22.5]} 35. h3 {[%clk 0:00:33.7]} 35... hxg4 {[%clk 0:00:22.4]} 36. hxg4
{[%clk 0:00:34.6]} 36... Kf6 {[%clk 0:00:22.7]} 37. Ke2 {[%clk 0:00:30.5]} 37...
Rb3 {[%clk 0:00:22.9]} 38. Rd2 {[%clk 0:00:23.1]} 38... Ke6 {[%clk 0:00:18.7]}
39. Kf2 {[%clk 0:00:19.2]} 39... Rd3 {[%clk 0:00:11.8]} 40. Ke2 {[%clk 0:00:18]}
40... Rb3 {[%clk 0:00:11.7]} 41. Kf2 {[%clk 0:00:17.7]} 41... f5 {[%clk
0:00:11.7]} 42. g5 {[%clk 0:00:17.1]} 42... c3 {[%clk 0:00:04.4]} 43. bxc3
{[%clk 0:00:15.6]} 43... Rxa3 {[%clk 0:00:05]} 44. Rb2 {[%clk 0:00:14.4]} 44...
Rxc3 {[%clk 0:00:01.7]} 45. Rxb5 {[%clk 0:00:14.4]} 45... Rc2+ {[%clk
0:00:02.4]} 46. Ke1 {[%clk 0:00:14.3]} 46... Rc1+ {[%clk 0:00:01.1]} 47. Kd2
{[%clk 0:00:14.2]} 47... Rf1 {[%clk 0:00:01.6]} 48. Rb6+ {[%clk 0:00:14.1]}
48... Kf7 {[%clk 0:00:02]} 49. Rf6+ {[%clk 0:00:13.7]} 49... Kg7 {[%clk
0:00:02.6]} 50. Rc6 {[%clk 0:00:12.9]} 50... Rf2+ {[%clk 0:00:02.7]} 51. Ke1
{[%clk 0:00:13.3]} 51... Ra2 {[%clk 0:00:02.4]} 52. Rc7+ {[%clk 0:00:13.6]}
52... Kf8 {[%clk 0:00:02.7]} 53. Rd7 {[%clk 0:00:14.2]} 53... Rb2 {[%clk
0:00:01.3]} 54. Rh7 {[%clk 0:00:12.8]} 54... Kg8 {[%clk 0:00:01.1]} 55. Rd7
{[%clk 0:00:12.7]} 55... Kf8 {[%clk 0:00:01.3]} 56. Rd2 {[%clk 0:00:13.3]} 56...
Rb1+ {[%clk 0:00:01]} 57. Ke2 {[%clk 0:00:13.2]} 57... Rb3 {[%clk 0:00:01.9]}
58. Ra2 {[%clk 0:00:13.3]} 58... Rd3 {[%clk 0:00:01.7]} 59. Ra7 {[%clk
0:00:13.7]} 59... Kg8 {[%clk 0:00:01.8]} 60. Ra6 {[%clk 0:00:14.1]} 60... Kg7
{[%clk 0:00:01.8]} 61. Rb6 {[%clk 0:00:14.5]} 61... Kf7 {[%clk 0:00:02.1]} 62.
Rb7+ {[%clk 0:00:14.9]} 62... Kf8 {[%clk 0:00:02.3]} 63. Rb2 {[%clk 0:00:15.8]}
63... Kf7 {[%clk 0:00:02.6]} 64. Rd2 {[%clk 0:00:16.7]} 64... Rc3 {[%clk
0:00:02.4]} 65. Rd4 {[%clk 0:00:16.7]} 65... Rc2+ {[%clk 0:00:02.5]} 66. Kd1
{[%clk 0:00:15.9]} 66... Rg2 {[%clk 0:00:02.3]} 67. Rd2 {[%clk 0:00:15.9]} 67...
Rg3 {[%clk 0:00:02.3]} 68. Re2 {[%clk 0:00:16.3]} 68... Ke6 {[%clk 0:00:02.7]}
69. Kd2 {[%clk 0:00:16.9]} 69... Rg1 {[%clk 0:00:02.9]} 70. Rh2 {[%clk
0:00:17.2]} 70... Rg3 {[%clk 0:00:01.7]} 71. Rh7 {[%clk 0:00:17.6]} 71... Rg2+
{[%clk 0:00:01.7]} 72. Kc3 {[%clk 0:00:17.3]} 72... Re2 {[%clk 0:00:01.8]} 73.
Kd4 {[%clk 0:00:17.7]} 73... Rd2+ {[%clk 0:00:02.1]} 74. Kc4 {[%clk 0:00:18.2]}
74... Rd3 {[%clk 0:00:03]} 75. Rg7 {[%clk 0:00:17.8]} 75... Rxe3 {[%clk
0:00:03.4]} 76. Rxg6+ {[%clk 0:00:18.4]} 76... Ke7 {[%clk 0:00:02.9]} 77. Rf6
{[%clk 0:00:18.2]} 77... Rg3 {[%clk 0:00:01.2]} 78. Rxf5 {[%clk 0:00:18.5]}
78... e3 {[%clk 0:00:01.9]} 79. Kd3 {[%clk 0:00:18.3]} 79... Ke6 {[%clk
0:00:01]} 80. Rf6+ {[%clk 0:00:17.8]} 80... Ke7 {[%clk 0:00:01.6]} 81. Ke2
{[%clk 0:00:17.4]} 81... Ke8 {[%clk 0:00:01.3]} 82. Rf5 {[%clk 0:00:17.6]} 82...
Ke7 {[%clk 0:00:01.3]} 83. Re5+ {[%clk 0:00:17.8]} 83... Kf7 {[%clk 0:00:02]}
84. Rxe3 {[%clk 0:00:18.6]} 84... Rg2+ {[%clk 0:00:02.3]} 85. Kf3 {[%clk
0:00:18.6]} 85... Ra2 {[%clk 0:00:03.2]} 86. Rb3 {[%clk 0:00:18.7]} 86... Kg7
{[%clk 0:00:02.8]} 87. f5 {[%clk 0:00:18.6]} 87... Kf7 {[%clk 0:00:02.7]} 88.
Rb7+ {[%clk 0:00:18.7]} 88... Kf8 {[%clk 0:00:02.8]} 89. Kg4 {[%clk 0:00:19.2]}
89... Ra5 {[%clk 0:00:02.6]} 90. g6 {[%clk 0:00:18.7]} 90... Kg8 {[%clk
0:00:02.4]} 91. Kg5 {[%clk 0:00:19]} 91... Ra1 {[%clk 0:00:02.3]} 92. Rb8+
{[%clk 0:00:19]} 92... Kg7 {[%clk 0:00:01.9]} 93. f6# {[%clk 0:00:19.9]} 1-0